bitfinex/quotes_SOLUSD_20260228
["timestamp","ask_amount","ask_price","bid_price","bid_amount"]
[1772274543341,0.49608229,78.589,78.561,0.45644074]
[1772274544171,0.49608229,78.588,78.561,0.45644074]
[1772274544345,44.53549478,78.589,78.54,6.47673923]
[1772274544346,0.49608229,78.587,78.54,6.47673923]
[1772274544549,0.49608229,78.569,78.538,0.45644074]
[1772274545255,0.49608229,78.569,78.531,0.45644074]
[1772274545445,108.15763019,78.589,78.521,0.45644074]
[1772274545446,0.49608229,78.559,78.521,0.45644074]
[1772274546148,6.47673923,78.55,78.521,0.45644074]
[1772274546367,0.49608229,78.549,78.521,0.45644074]
[1772274548667,0.49608229,78.547,78.521,0.45644074]
[1772274549271,0.49608229,78.547,78.51,6.67673923]
[1772274550772,0.46943314,78.545,78.51,6.67673923]
[1772274551169,0.46943314,78.545,78.511,0.47989942]
[1772274551672,0.46943314,78.539,78.511,0.47989942]
[1772274552810,44.55987573,78.546,78.505,34.55932012]
[1772274552811,0.46943314,78.528,78.505,34.55932012]
[1772274553080,0.46943314,78.528,78.48,0.2]
[1772274553081,0.02084728,78.509,78.481,0.48957636]
[1772274553255,6.6527703,78.503,78.481,0.48957636]
[1772274553459,0.02084728,78.502,78.48,0.2]
[1772274553651,0.02084728,78.502,78.48,1e-08]
[1772274553966,1.03555994,78.503,78.49,6.47673923]
[1772274554476,1.03555994,78.503,78.48,1e-08]
[1772274554477,1.03555994,78.503,78.48,6.47673924]
[1772274554876,12.73852895,78.502,78.48,6.47673924]
[1772274555695,12.73852895,78.502,78.481,0.47989942]
[1772274556177,0.46943314,78.501,78.48,1e-08]
[1772274556676,0.46943314,78.499,78.47,0.67989942]
[1772274556875,44.58485133,78.502,78.458,0.47989942]
[1772274556876,0.46943314,78.501,78.458,0.47989942]
[1772274557054,1.03555994,78.503,78.481,0.47989942]
[1772274557256,1.03555994,78.503,78.491,0.47989942]
[1772274557469,0.46943314,78.501,78.461,0.28432314]
[1772274557662,0.46943314,78.501,78.47,6.47673923]
[1772274557864,12.73852895,78.502,78.48,6.47673923]
[1772274558068,1.03555994,78.503,78.49,6.47673923]
[1772274558270,12.73852895,78.502,78.49,6.47673923]
[1772274559084,12.73674423,78.513,78.49,6.47673923]
[1772274559281,0.46943314,78.512,78.49,6.47673923]
[1772274559461,0.46943314,78.512,78.46,3.69383402]
[1772274559662,0.46943314,78.499,78.461,0.47989942]
[1772274560190,0.46943314,78.499,78.471,0.47989942]
[1772274560979,0.46943314,78.497,78.471,0.47989942]
[1772274561281,0.46943314,78.51,78.481,0.47989942]
[1772274562381,0.46943314,78.508,78.481,0.47989942]
[1772274562965,12.73739316,78.509,78.481,0.47989942]
[1772274563479,13.2068263,78.509,78.481,0.47989942]
[1772274563684,0.46943314,78.508,78.481,0.47989942]
[1772274564268,12.73771765,78.507,78.481,0.47989942]
[1772274564584,0.46943314,78.515,78.481,0.47989942]
[1772274564800,0.46943314,78.523,78.5,6.47673923]
[1772274565091,12.73528437,78.522,78.501,0.47989942]
[1772274565267,13.20381229,78.528,78.5,5.92107871]
[1772274565696,12.73333842,78.534,78.51,6.47673923]
[1772274566163,13.20277156,78.534,78.51,6.47673923]
[1772274566368,0.46943314,78.533,78.51,6.47673923]
[1772274567274,0.46943314,78.533,78.51,14.46959155]
[1772274567878,0.46943314,78.533,78.507,0.47989942]
[1772274568291,12.73366271,78.532,78.51,14.46959155]
[1772274569168,0.46943314,78.531,78.51,14.46959155]
[1772274570691,12.73398701,78.53,78.51,14.46959155]
[1772274570899,13.20342015,78.53,78.51,14.46959155]
[1772274571076,0.46943314,78.529,78.51,14.46959155]
[1772274571269,12.73398701,78.53,78.511,0.47989942]
[1772274572392,0.46943314,78.529,78.51,14.46959155]
[1772274572695,12.73431132,78.528,78.51,14.46959155]
[1772274573989,12.73431132,78.528,78.511,0.47989942]
[1772274574188,0.46943314,78.547,78.521,0.47989942]
[1772274574588,12.73139306,78.546,78.521,0.47989942]
[1772274574893,0.46943314,78.545,78.521,0.47989942]
[1772274575680,0.46943314,78.545,78.52,14.46959155]
[1772274577287,0.46943314,78.543,78.52,14.46959155]
[1772274578493,0.46943314,78.543,78.521,0.47989942]
[1772274579189,68.83837457,78.597,78.489,6.6]
[1772274579190,0.46943314,78.553,78.531,0.47989942]
[1772274579795,0.46943314,78.553,78.53,14.46959155]
[1772274580195,0.46943314,78.567,78.54,14.46959155]
[1772274580393,0.46943314,78.567,78.541,0.47989942]
[1772274582298,0.48756561,78.565,78.535,0.49945653]
[1772274583403,0.48756561,78.559,78.523,0.49945653]
[1772274584393,0.48756561,78.557,78.53,14.46959155]
[1772274585395,0.48756561,78.557,78.514,3.69383402]
[1772274585601,0.48756561,78.557,78.52,14.46959155]
[1772274585989,0.48756561,78.557,78.53,14.46959155]
[1772274587183,0.48756561,78.555,78.53,14.46959155]
[1772274587383,0.48756561,78.555,78.52,14.46959155]
[1772274587683,0.48756561,78.555,78.53,14.46959155]
[1772274588886,0.48756561,78.555,78.503,44.86860653]
[1772274588887,0.48756561,78.555,78.521,0.03032099]
[1772274589100,0.48756561,78.553,78.53,14.46959155]
[1772274589306,0.48756561,78.553,78.53,6.47893831]
[1772274591149,0.48756561,78.551,78.53,6.47893831]
[1772274591899,0.48756561,78.551,78.53,6.5092593]
[1772274593212,12.73074474,78.55,78.53,6.5092593]
[1772274593801,0.48756561,78.549,78.53,6.47893831]
[1772274595193,0.48756561,78.547,78.52,6.5092593]
[1772274595393,0.48756561,78.547,78.521,0.03032099]
[1772274596014,0.48756561,78.547,78.53,6.47893831]
[1772274596913,0.48756561,78.56,78.54,6.47893831]
[1772274597315,0.48756561,78.56,78.531,0.03032099]
[1772274598003,0.48756561,78.558,78.53,6.47797329]
[1772274599313,0.48756561,78.556,78.521,0.03032099]
[1772274599828,63.62366463,78.588,78.531,0.03032099]
[1772274599829,0.48756561,78.561,78.531,0.03032099]
[1772274600125,0.48756561,78.568,78.541,0.03032099]
[1772274600620,0.48756561,78.568,78.54,6.47797329]
[1772274601511,0.48756561,78.566,78.529,0.03032099]
[1772274601696,0.5,78.539,78.5,6.47797329]
[1772274602098,108.18791603,78.567,78.53,6.47797329]
[1772274602099,0.5,78.566,78.53,6.47797329]
[1772274602523,0.5,78.566,78.54,6.47797329]
[1772274603417,0.5,78.566,78.55,6.47797329]
[1772274603618,0.5,78.573,78.55,6.47797329]
[1772274605724,0.5,78.571,78.55,6.47797329]
[1772274608842,0.5,78.569,78.54,6.47797329]
[1772274611013,0.5,78.567,78.54,6.47797329]
[1772274611511,0.5,78.567,78.541,12.73220356]
[1772274611911,0.5,78.567,78.55,6.47797329]
[1772274612337,0.5,78.567,78.541,12.73220356]
[1772274613338,0.5,78.58,78.55,6.47797329]
[1772274613517,0.5,78.58,78.56,6.47797329]
[1772274615439,0.5,78.579,78.56,6.47797329]
[1772274615951,12.7252804,78.584,78.561,12.7289622]
[1772274616232,13.2252804,78.584,78.561,12.7289622]
[1772274616620,13.22441512,78.59,78.57,6.47797329]
[1772274616821,0.5,78.589,78.57,6.47797329]
[1772274617023,0.5,78.589,78.561,12.7289622]
[1772274617441,0.5,78.589,78.53,63.66959801]
[1772274617442,0.5,78.587,78.55,6.47797329]
[1772274618514,0.5,78.587,78.56,6.47797329]
[1772274619544,0.5,78.585,78.561,12.7289622]
[1772274620036,0.5,78.585,78.556,12.72971852]
[1772274620837,0.5,78.585,78.56,6.47797329]
[1772274621239,0.5,78.583,78.56,6.47797329]
[1772274621435,0.5,78.583,78.561,12.7289622]
[1772274622517,12.72521393,78.585,78.561,12.7289622]
[1772274622720,12.72442708,78.589,78.561,12.7289622]
[1772274622934,13.22442708,78.589,78.561,12.7289622]
[1772274623136,0.5,78.588,78.561,12.7289622]
[1772274624124,0.5,78.586,78.561,12.7289622]
[1772274625645,0.5,78.607,78.58,6.47797329]
[1772274626031,0.5,78.606,78.58,6.47797329]
[1772274626345,0.5,78.604,78.58,6.47797329]
[1772274626543,0.5,78.604,78.572,12.72712268]
[1772274626724,0.5,78.604,78.554,12.73009649]
[1772274626931,0.5,78.599,78.56,6.47797329]
[1772274628823,0.5,78.597,78.561,12.7289622]
[1772274629024,0.5,78.603,78.58,6.47797329]
[1772274629329,0.5,78.601,78.58,6.47797329]
[1772274629845,12.72170029,78.606,78.58,6.47797329]
[1772274630044,12.72170029,78.606,78.59,6.47797329]
[1772274630754,12.72170029,78.606,78.58,6.47797329]
[1772274631255,0.5,78.612,78.58,6.47797329]
[1772274631429,0.5,78.609,78.57,6.47797329]
[1772274632528,12.7205424,78.613,78.556,3.69383402]
[1772274632529,0.5,78.607,78.58,6.47797329]
[1772274634950,0.5,78.605,78.58,19.2037075]
[1772274635552,0.5,78.599,78.56,38.30046011]
[1772274635847,0.5,78.599,78.57,6.47797329]
[1772274636631,0.5,78.597,78.571,12.72734214]
[1772274636947,0.5,78.597,78.58,6.47797329]
[1772274637134,0.5,78.602,78.58,6.47797329]
[1772274637333,0.5,78.602,78.571,12.72734214]
[1772274638760,0.5,78.6,78.571,12.72734214]
[1772274640161,31.80095148,78.614,78.574,0.48279038]
[1772274640740,6.47797329,78.61,78.574,0.48279038]
[1772274641363,6.47797329,78.6,78.568,0.47732818]
[1772274641670,6.47797329,78.6,78.516,0.47732818]
[1772274641671,6.47797329,78.58,78.516,0.47732818]
[1772274641837,6.47797329,78.55,78.512,12.73674494]
[1772274642038,6.47797329,78.56,78.521,0.47732818]
[1772274642245,0.47062444,78.559,78.521,0.47732818]
[1772274642649,0.4772804,78.583,78.531,0.47366048]
[1772274642970,0.4772804,78.622,78.571,0.47366048]
[1772274643266,0.4772804,78.619,78.58,6.47797329]
[1772274643445,0.4772804,78.609,78.574,0.47366048]
[1772274643668,0.4772804,78.609,78.58,6.47797329]
[1772274643852,0.4772804,78.609,78.59,6.47797329]
[1772274645942,0.4772804,78.616,78.59,6.47797329]
[1772274646144,0.4772804,78.624,78.6,6.47797329]
[1772274646743,0.4772804,78.624,78.591,0.47366048]
[1772274648068,0.4772804,78.619,78.58,6.47797329]
[1772274648756,0.4772804,78.619,78.58,6.95163377]
[1772274651196,0.4772804,78.617,78.58,6.95163377]
[1772274651953,0.4772804,78.617,78.58,6.47797329]
[1772274652275,0.4772804,78.609,78.574,0.47366048]
[1772274652571,0.4772804,78.609,78.58,6.47797329]
[1772274653474,0.4772804,78.607,78.58,6.47797329]
[1772274654163,0.4772804,78.607,78.581,0.47366048]
[1772274654667,0.4772804,78.607,78.581,12.7257225]
[1772274654866,0.4772804,78.607,78.58,6.47797329]
[1772274655573,0.4772804,78.607,78.58,19.20371215]
[1772274655776,0.4772804,78.611,78.59,6.47797329]
[1772274655956,0.4772804,78.611,78.581,0.47366048]
[1772274656462,12.72102785,78.61,78.581,0.47366048]
[1772274656661,0.4772804,78.609,78.581,0.47366048]
[1772274657675,12.72041575,78.614,78.591,0.47366048]
[1772274657871,13.19769615,78.614,78.591,0.47366048]
[1772274658077,0.4772804,78.613,78.591,0.47366048]
[1772274658366,0.4772804,78.613,78.59,6.47797329]
[1772274659268,0.4772804,78.613,78.59,6.46888151]
[1772274660054,0.4772804,78.611,78.582,12.72556056]
[1772274660771,0.4772804,78.611,78.582,13.19922104]
[1772274660976,0.4772804,78.611,78.59,6.46888151]
[1772274661179,0.4772804,78.611,78.576,0.47366048]
[1772274661479,0.4772804,78.611,78.575,7.07366048]
[1772274661776,0.4772804,78.611,78.576,0.47366048]
[1772274662273,0.4772804,78.599,78.56,6.46888151]
[1772274662452,6.46888151,78.59,78.541,0.47366048]
[1772274662848,0.17957283,78.602,78.571,0.47366048]
[1772274663053,0.17907422,78.61,78.581,0.47366048]
[1772274663266,44.51850061,78.619,78.581,0.47366048]
[1772274664474,0.4772804,78.616,78.582,0.47366048]
[1772274667881,12.72021878,78.615,78.582,0.47366048]
[1772274668067,0.4772804,78.614,78.582,0.47366048]
[1772274668570,0.4772804,78.614,78.591,0.47366048]
[1772274668879,0.4772804,78.614,78.583,12.72539862]
[1772274668880,0.4772804,78.614,78.583,0.47366048]
[1772274670175,0.4772804,78.614,78.6,6.46888151]
[1772274670475,0.4772804,78.614,78.591,0.47366048]
[1772274671852,0.46224167,78.625,78.6,6.46888151]
[1772274672052,0.46224167,78.625,78.595,0.47534756]
[1772274673069,0.46224167,78.619,78.589,0.47534756]
[1772274673466,0.46224167,78.619,78.591,0.47534756]
[1772274675055,12.71973339,78.618,78.591,0.47534756]
[1772274675260,0.46224167,78.617,78.591,0.47534756]
[1772274678084,0.46224167,78.615,78.591,0.47534756]
[1772274679166,0.46224167,78.615,78.583,0.47534756]
[1772274679877,0.46224167,78.615,78.591,0.47534756]
[1772274680662,12.72038059,78.614,78.591,0.47534756]
[1772274684893,0.46224167,78.613,78.591,0.47534756]
[1772274685789,0.1,78.63,78.601,0.39250995]
[1772274685977,0.56224167,78.63,78.601,0.39250995]
[1772274686169,0.56224167,78.63,78.603,0.39250995]
[1772274687592,12.71849569,78.626,78.603,0.39250995]
[1772274687773,0.46224167,78.625,78.603,0.39250995]
[1772274689789,0.46224167,78.623,78.603,0.39250995]
[1772274691494,6.56888151,78.64,78.603,0.39250995]
[1772274691495,12.71148737,78.669,78.634,0.29250995]
[1772274691696,0.46224167,78.668,78.65,6.46888151]
[1772274691881,0.46224167,78.666,78.64,6.46888151]
[1772274692082,0.56224167,78.68,78.641,0.29250995]
[1772274692392,0.1,78.68,78.661,0.29250995]
[1772274692981,0.1,78.68,78.66,6.46888151]
[1772274693182,12.70987175,78.679,78.66,6.46888151]
[1772274695401,12.70987175,78.679,78.66,6.76139146]
[1772274695605,0.1,78.68,78.661,0.29250995]
[1772274695979,0.1,78.68,78.67,6.46888151]
[1772274696910,0.1,78.7,78.671,0.09250995]
[1772274697204,0.46224167,78.699,78.68,6.46888151]
[1772274698237,0.46224167,78.699,78.661,0.47534756]
[1772274698495,12.80648548,78.7,78.681,0.47534756]
[1772274698880,0.1,78.7,78.69,6.46888151]
[1772274699080,0.1,78.7,78.687,0.47534756]
[1772274699780,0.1,78.7,78.69,6.94422907]
[1772274699981,0.1,78.7,78.691,0.47534756]
[1772274700204,6.46888151,78.73,78.69,6.46888151]
[1772274700205,0.46224167,78.741,78.692,0.47534756]
[1772274700379,0.46224167,78.739,78.701,0.47174289]
[1772274700980,12.70034798,78.738,78.701,0.47174289]
[1772274701194,0.47472153,78.737,78.702,0.47174289]
[1772274701683,0.47472153,78.742,78.72,6.46888151]
[1772274702010,4.75913772,78.747,78.731,0.47174289]
[1772274702394,4.75913772,78.747,78.696,5.36086188]
[1772274702395,4.75913772,78.747,78.692,0.46316493]
[1772274702591,12.69905772,78.746,78.691,0.46316493]
[1772274702784,6.46888151,78.74,78.701,0.46316493]
[1772274703180,44.45065342,78.739,78.701,0.46316493]
[1772274703385,6.46888151,78.73,78.701,0.46316493]
[1772274703887,0.47527913,78.729,78.701,0.46316493]
[1772274704284,44.45065342,78.739,78.701,0.46316493]
[1772274704285,0.47527913,78.738,78.701,0.46316493]
[1772274704483,12.70018669,78.739,78.711,0.46316493]
[1772274704682,4.75913772,78.747,78.721,0.46316493]
[1772274704901,12.69905772,78.746,78.721,0.46316493]
[1772274705405,13.17433685,78.746,78.721,0.46316493]
[1772274705711,0.47527913,78.729,78.692,0.46316493]
[1772274705907,0.47527913,78.709,78.673,0.46316493]
[1772274706112,44.44670204,78.746,78.681,0.46316493]
[1772274706113,0.47527913,78.716,78.681,0.46316493]
[1772274706285,0.47527913,78.723,78.691,0.46316493]
[1772274706487,0.47527913,78.731,78.701,0.46316493]
[1772274706681,0.47527913,78.731,78.674,44.48737829]
[1772274706682,0.47527913,78.729,78.691,0.46316493]
[1772274707606,0.47527913,78.727,78.691,0.46316493]
[1772274707808,0.47527913,78.727,78.693,0.46316493]
[1772274708011,0.47527913,78.727,78.7,6.93204644]
[1772274708215,12.70196118,78.728,78.701,0.46316493]
[1772274708423,5.36086188,78.787,78.692,12.70777207]
[1772274708424,12.69998877,78.741,78.72,6.93204644]
[1772274708928,0.47527913,78.74,78.713,0.46316493]
[1772274709118,12.69998877,78.741,78.713,0.46316493]
[1772274709303,12.69998877,78.741,78.72,6.46888151]
[1772274709624,12.69914571,78.746,78.721,0.46316493]
[1772274710007,4.75913772,78.747,78.721,0.46316493]
[1772274710324,4.75913772,78.747,78.699,3.69383402]
[1772274710325,0.47527913,78.746,78.712,0.46316493]
[1772274710503,4.75913772,78.747,78.721,0.46316493]
[1772274710698,4.75913772,78.747,78.73,6.93204644]
[1772274710904,12.6965359,78.762,78.741,0.46316493]
[1772274711118,8.20803169,78.771,78.751,0.46316493]
[1772274711327,12.69518852,78.77,78.751,0.46316493]
[1772274711528,8.20803169,78.771,78.76,6.46888151]
[1772274711827,1e-08,78.784,78.761,0.28432314]
[1772274712127,0.5,78.819,78.771,0.28432314]
[1772274712325,0.5,78.819,78.8,6.46888151]
[1772274712506,0.5,78.828,78.8,6.46888151]
[1772274712701,0.5,78.828,78.777,3.69383402]
[1772274712702,0.5,78.856,78.777,3.69383402]
[1772274713031,0.5,78.856,78.729,158.77249805]
[1772274713032,6.62571347,78.897,78.817,3.69367235]
[1772274713234,6.62571347,78.897,78.778,11.95642036]
[1772274713235,0.48158246,78.889,78.779,63.07944662]
[1772274713520,107.67671647,78.94,78.798,41.73741234]
[1772274713521,16.69304089,78.88,78.798,41.73741234]
[1772274713704,3.69383402,78.913,78.85,17.21145843]
[1772274713904,17.21145843,78.89,78.851,0.46316493]
[1772274714334,0.17957283,78.912,78.83,17.21145843]
[1772274714335,17.21145843,78.87,78.83,17.21145843]
[1772274714518,17.21145843,78.86,78.805,12.68946581]
[1772274714823,17.21145843,78.83,78.804,59.01935837]
[1772274715040,0.17957283,78.879,78.821,0.46316493]
[1772274715218,17.21145843,78.86,78.821,0.46316493]
[1772274715407,17.21145843,78.86,78.823,0.46316493]
[1772274715603,17.21145843,78.85,78.823,0.46316493]
[1772274715808,17.21145843,78.86,78.825,0.46316493]
[1772274716430,0.47527913,78.849,78.813,0.46316493]
[1772274716733,17.21145843,78.83,78.804,62.71319239]
[1772274717034,17.21145843,78.82,78.804,59.01935837]
[1772274717719,12.68729621,78.819,78.804,59.01935837]
[1772274718120,17.21145843,78.82,78.804,59.01935837]
[1772274718934,12.68729621,78.819,78.804,59.01935837]
[1772274719112,12.68729621,78.819,78.787,0.46316493]
[1772274719314,12.68729621,78.819,78.77,3.69383402]
[1772274719315,17.21145843,78.81,78.773,0.46316493]
[1772274719619,17.21145843,78.8,78.773,0.46316493]
[1772274719819,17.21145843,78.82,78.773,0.46316493]
[1772274720131,17.21145843,78.82,78.781,0.46316493]
[1772274720334,0.47527913,78.809,78.772,0.46316493]
[1772274721033,0.47527913,78.809,78.756,39.63337509]
[1772274721034,17.21145843,78.79,78.763,0.46316493]
[1772274721329,0.47527913,78.799,78.763,0.46316493]
[1772274721532,0.47527913,78.838,78.782,0.28432314]
[1772274721717,17.72627326,78.82,78.783,0.46316493]
[1772274721918,17.25099413,78.81,78.783,0.46316493]
[1772274722517,0.47527913,78.818,78.783,0.46316493]
[1772274722714,0.47527913,78.818,78.767,12.69564107]
[1772274722715,17.25099413,78.79,78.758,0.46316493]
[1772274723023,17.25099413,78.79,78.762,0.46316493]
[1772274723024,14.72406215,78.79,78.762,0.46316493]
[1772274723231,17.25099413,78.8,78.762,0.46316493]
[1772274723539,17.25099413,78.82,78.783,0.46316493]
[1772274724236,13.16175646,78.825,78.791,0.46316493]
[1772274724532,67.10537666,78.85,78.791,0.46316493]
[1772274724533,17.25099413,78.82,78.791,0.46316493]
[1772274724740,13.16096586,78.829,78.791,0.46316493]
[1772274725115,13.16096586,78.829,78.771,3.69383402]
[1772274725116,12.68453376,78.837,78.801,0.46316493]
[1772274725335,3.69383402,78.86,78.784,12.69293257]
[1772274725336,0.47527913,78.873,78.821,0.46316493]
[1772274725540,0.47527913,78.869,78.831,0.46316493]
[1772274725839,0.47527913,78.869,78.784,44.425264]
[1772274725840,0.47527913,78.878,78.84,17.25099413]
[1772274726221,17.25099413,78.87,78.83,17.25099413]
[1772274726437,0.47527913,78.916,78.821,3.69383402]
[1772274726635,0.47527913,78.899,78.86,17.25099413]
[1772274726822,0.47527913,78.899,78.829,5.36086188]
[1772274727023,17.25099413,78.88,78.84,17.25099413]
[1772274727515,44.35095544,78.916,78.84,17.25099413]
[1772274727516,17.25099413,78.87,78.84,17.25099413]
[1772274727711,17.25099413,78.87,78.842,0.26270892]
[1772274727913,0.47527913,78.869,78.833,0.26270892]
[1772274728128,31.68954409,78.891,78.833,0.26270892]
[1772274728129,0.47527913,78.879,78.833,0.26270892]
[1772274728321,0.47527913,78.879,78.841,0.2821516]
[1772274728519,17.25099413,78.87,78.841,0.2821516]
[1772274728724,17.25099413,78.87,78.832,0.2821516]
[1772274728725,0.47527913,78.869,78.832,0.2821516]
[1772274729321,17.25099413,78.9,78.832,0.2821516]
[1772274729322,0.47527913,78.882,78.841,0.30137096]
[1772274729521,17.25099413,78.87,78.841,0.30137096]
[1772274730141,63.8883306,78.914,78.828,57.16]
[1772274730142,0.62305918,78.919,78.86,17.25099413]
[1772274730333,0.62305918,78.919,78.88,13.71744983]
[1772274730532,0.62305918,78.919,78.88,8.01156323]
[1772274730738,0.63146388,78.927,78.9,17.25099413]
[1772274730922,0.63146388,78.919,78.845,3.69383402]
[1772274731243,0.63146388,78.919,78.88,17.25099413]
[1772274732417,0.63146388,78.909,78.871,0.08608255]
[1772274732617,0.63146388,78.899,78.861,0.08608255]
[1772274732824,4.48545806,78.943,78.871,0.08608255]
[1772274732825,0.63146388,78.917,78.871,0.08608255]
[1772274733118,0.63146388,78.909,78.871,0.08608255]
[1772274733336,17.25099413,78.9,78.871,0.08608255]
[1772274733539,0.63146388,78.909,78.871,0.08608255]
[1772274733760,0.63146388,78.919,78.881,0.10981902]
[1772274734120,17.25099413,78.9,78.86,29.9316099]
[1772274734325,0.63146388,78.899,78.861,0.13328285]
[1772274734753,17.88245801,78.91,78.88,17.25099413]
[1772274734948,0.63146388,78.91,78.88,17.38427698]
[1772274735266,17.88245801,78.91,78.88,0.13328285]
[1772274735423,0.63146388,78.909,78.871,0.15647718]
[1772274735837,17.25099413,78.9,78.871,0.15647718]
[1772274736048,0.63146388,78.908,78.862,0.18149272]
[1772274736265,0.63146388,78.908,78.864,0.28432314]
[1772274736447,0.63146388,78.908,78.89,17.25099413]
[1772274736653,12.66943887,78.931,78.9,17.25099413]
[1772274736834,63.51249784,78.984,78.9,17.25099413]
[1772274736835,12.67114093,79.004,78.921,0.28432314]
[1772274737145,17.25099413,79.08,78.924,5.64518502]
[1772274737146,0.71380554,79.003,78.924,5.64518502]
[1772274737365,0.71380554,78.989,78.924,0.28432314]
[1772274737548,0.71380554,78.989,78.95,17.25099413]
[1772274737747,17.25099413,79.02,78.912,3.69383402]
[1772274737748,0.71380554,78.979,78.912,3.69383402]
[1772274737949,0.71380554,78.979,78.95,17.25099413]
[1772274738155,0.71380554,78.979,78.94,12.66772948]
[1772274738361,0.71380554,78.979,78.9,17.25099413]
[1772274738362,0.71380554,79.01,78.97,17.25099413]
[1772274738669,17.25099413,79.08,78.925,0.04917239]
[1772274738670,17.25099413,78.99,78.925,0.04917239]
[1772274738975,0.71380554,78.959,78.923,57.1]
[1772274739136,107.5799572,79.011,78.902,0.20961771]
[1772274739137,0.71380554,78.939,78.902,0.20961771]
[1772274739533,17.96479967,78.95,78.902,0.20961771]
[1772274739737,0.71380554,78.96,78.93,17.25099413]
[1772274739972,0.71380554,78.959,78.92,17.25099413]
[1772274740254,0.71380554,78.959,78.896,35.38077665]
[1772274740255,17.25099413,78.96,78.88,17.25099413]
[1772274740256,0.71380554,78.929,78.88,17.25099413]
[1772274740455,0.71380554,78.929,78.84,17.25099413]
[1772274740456,0.71380554,78.909,78.87,17.25099413]
[1772274740638,0.71380554,78.909,78.88,17.25099413]
[1772274740837,0.71380554,78.899,78.87,17.25099413]
[1772274741754,0.71380554,78.899,78.861,0.09722169]
[1772274741955,0.71380554,78.899,78.87,17.25099413]
[1772274743945,0.71380554,78.909,78.87,17.25099413]
[1772274744862,0.71380554,78.899,78.87,17.25099413]
[1772274745057,0.71380554,78.899,78.86,17.25099413]
[1772274745257,0.71380554,78.889,78.85,17.25099413]
[1772274745557,0.71380554,78.889,78.849,0.21256018]
[1772274745738,17.25099413,78.89,78.85,17.25099413]
[1772274746062,63.27894482,78.966,78.849,12.89493099]
[1772274746063,0.71380554,78.907,78.871,0.21256018]
[1772274746852,17.25099413,78.9,78.871,0.21256018]
[1772274747058,17.96479967,78.91,78.874,0.25685843]
[1772274747363,17.25099413,78.9,78.865,0.25685843]
[1772274748442,17.25099413,78.9,78.843,3.69383402]
[1772274748443,0.71380554,78.889,78.844,0.27862669]
[1772274748658,17.25099413,78.88,78.844,0.27862669]
[1772274748969,17.25099413,78.87,78.844,0.27862669]
[1772274749342,0.71380554,78.879,78.844,0.27862669]
[1772274750069,0.71380554,78.869,78.831,0.32141597]
[1772274750776,63.93529807,78.93,78.831,0.32141597]
[1772274750777,3.69383402,78.912,78.84,17.25099413]
[1772274751065,3.69383402,78.912,78.83,17.25099413]
[1772274751066,0.71380554,78.869,78.83,17.25099413]
[1772274751297,17.25099413,78.9,78.821,0.34244272]
[1772274751298,0.71380554,78.859,78.821,0.34244272]
[1772274751457,17.21926256,78.87,78.821,0.34244272]
[1772274751655,0.71380554,78.869,78.827,0.34244272]
[1772274752061,0.71380554,78.849,78.81,3.69383402]
[1772274752459,5.36086188,78.897,78.807,0.36322795]
[1772274752460,0.71380554,78.839,78.807,0.36322795]
[1772274752665,3.69383402,78.894,78.807,0.36322795]
[1772274752666,17.21926256,78.85,78.807,0.36322795]
[1772274752971,17.21926256,78.85,78.8,12.69027872]
[1772274752972,17.21926256,78.85,78.814,0.28432314]
[1772274753280,17.21926256,78.85,78.816,0.28432314]
[1772274753572,0.71380554,78.864,78.827,0.28432314]
[1772274753772,20.91309658,78.9,78.816,0.38377445]
[1772274753773,0.71380554,78.859,78.816,0.38377445]
[1772274753974,17.21926256,78.86,78.818,0.40408495]
[1772274754182,0.71380554,78.87,78.823,0.14216157]
[1772274754360,0.71380554,78.891,78.843,0.28432314]
[1772274754557,0.71380554,78.899,78.848,0.28432314]
[1772274754770,0.71380554,78.899,78.86,0.28432314]
[1772274754974,0.71380554,78.899,78.859,0.40408495]
[1772274755785,0.71380554,78.899,78.866,0.28432314]
[1772274756483,0.71380554,78.899,78.851,0.44400876]
[1772274756659,0.71380554,78.899,78.852,0.28432314]
[1772274756977,0.71380554,78.897,78.852,0.28432314]
[1772274757367,0.71380554,78.897,78.857,0.46362741]
[1772274758372,0.71380554,78.879,78.841,0.48302072]
[1772274759170,0.71380554,78.879,78.842,0.14216157]
[1772274759476,0.71380554,78.879,78.842,0.28432314]
[1772274760467,0.71380554,78.879,78.843,0.53987434]
[1772274760665,0.94506612,78.869,78.831,0.53987434]
[1772274762389,0.94506612,78.869,78.79,1.26919659]
[1772274762390,0.97939894,78.849,78.807,0.59479132]
[1772274762588,0.97939894,78.869,78.808,0.28432314]
[1772274762773,0.97939894,78.869,78.817,0.59479132]
[1772274763082,0.97939894,78.859,78.817,0.59479132]
[1772274763288,0.97939894,78.849,78.808,0.61267809]
[1772274763990,0.97939894,78.849,78.811,0.89700123]
[1772274764187,0.97939894,78.849,78.813,0.28432314]
[1772274764389,0.97939894,78.849,78.797,3.69383402]
[1772274764594,0.97939894,78.839,78.792,0.6303594]
[1772274765090,0.97939894,78.839,78.691,6.6]